fUST/lending_fUST_20240630
["ID","MTS","AMOUNT","RATE_DAILY","PERIOD"]
[330647593,1719685839533,-641.33,0.00016966,2]
[330647594,1719685839542,-500.0,0.00016966,2]
[330647596,1719685839552,-893.91,0.00016966,2]
[330647598,1719685839562,-500.0,0.00016966,2]
[330647600,1719685839573,-500.0,0.00016966,2]
[330647602,1719685839583,-500.0,0.00016966,2]
[330647605,1719685839592,-500.0,0.00016966,2]
[330647606,1719685839602,-500.0,0.00016966,2]
[330647608,1719685839612,-677.46,0.00016966,2]
[330647610,1719685839622,-519.75471503,0.00016966,2]
[330647612,1719685839631,-500.0,0.00016966,2]
[330647615,1719685839641,-500.0,0.00016966,2]
[330647617,1719685839651,-1216.46,0.00016966,2]
[330647619,1719685839661,-500.0,0.00016966,2]
[330647620,1719685839671,-183.40138099,0.00016966,2]
[330647623,1719685839682,-543.58763257,0.00016966,2]
[330647625,1719685839691,-500.0,0.00016966,2]
[330647626,1719685839701,-503.32054217,0.00016966,2]
[330647628,1719685839711,-500.0,0.00016966,2]
[330647631,1719685839721,-500.0,0.00016966,2]
[330647632,1719685839731,-500.0,0.00016966,2]
[330647634,1719685839740,-1000.0,0.00016966,2]
[330647636,1719685839750,-528.6361372,0.00016966,2]
[330647639,1719685839760,-500.0,0.00016966,2]
[330647641,1719685839770,-500.0,0.00016966,2]
[330647643,1719685839780,-500.0,0.00016966,2]
[330647644,1719685839790,-538.1489988,0.00016966,2]
[330647646,1719685839800,-500.0,0.00016966,2]
[330647649,1719685839811,-1015.74,0.00016966,2]
[330647650,1719685839821,-408.71040211,0.00016966,2]
[330647653,1719685839831,-500.0,0.00016966,2]
[330647655,1719685839842,-597.99523537,0.00016966,2]
[330648994,1719686022359,3126.1091191,0.00014999,4]
[330649002,1719686110433,224.07905146,0.00014999,2]
[330649026,1719686427035,164.31484,0.00023562,120]
[330649038,1719686770619,1000.0,0.00024,59]
[330649051,1719686929890,-658.62888641,0.00016616,2]
[330649054,1719686929958,-658.62888641,0.00016616,2]
[330649217,1719687038100,-620.00000019,0.00016815,2]
[330649218,1719687038110,-1584.99360423,0.00016861,2]
[330649219,1719687038120,-2000.0,0.00016862,2]
[330649220,1719687038130,-1584.99360419,0.00016863,2]
[330649221,1719687038140,-1584.99360419,0.00016865,2]
[330649222,1719687038149,-1584.99360419,0.00016867,2]
[330649223,1719687038159,-1584.99360419,0.00016869,2]
[330649224,1719687038169,-641.33,0.0001696,2]
[330649225,1719687038179,-500.0,0.0001696,2]
[330649226,1719687038189,-893.91,0.0001696,2]
[330649227,1719687038199,-500.0,0.0001696,2]
[330649228,1719687038208,-500.0,0.0001696,2]
[330649229,1719687038218,-500.0,0.0001696,2]
[330649230,1719687038227,-677.46,0.0001696,2]
[330649231,1719687038237,-500.0,0.0001696,2]
[330649232,1719687038247,-500.0,0.0001696,2]
[330649233,1719687038256,-500.0,0.0001696,2]
[330649234,1719687038270,-500.0,0.0001696,2]
[330649235,1719687038280,-503.32054217,0.0001696,2]
[330649236,1719687038289,-500.0,0.0001696,2]
[330649237,1719687038299,-500.0,0.0001696,2]
[330649238,1719687038311,-760.28,0.0001696,2]
[330649239,1719687038322,-519.75471503,0.0001696,2]
[330649240,1719687038331,-528.6361372,0.0001696,2]
[330649241,1719687038451,-500.0,0.0001696,2]
[330649242,1719687038463,-500.0,0.0001696,2]
[330649243,1719687038473,-543.58763257,0.0001696,2]
[330649244,1719687038483,-500.0,0.0001696,2]
[330649245,1719687038492,-500.0,0.0001696,2]
[330649246,1719687038502,-183.40138099,0.0001696,2]
[330649247,1719687038511,-408.71040211,0.0001696,2]
[330649248,1719687038521,-1000.0,0.0001696,2]
[330649249,1719687038531,-881.53,0.0001696,2]
[330649250,1719687038540,-500.0,0.0001696,2]
[330649251,1719687038550,-500.0,0.0001696,2]
[330649252,1719687038561,-500.0,0.0001696,2]
[330649253,1719687038570,-9813.11,0.0001696,2]
[330649254,1719687038579,-500.0,0.0001696,2]
[330649255,1719687038588,-500.0,0.0001696,2]
[330649256,1719687038598,-1015.74,0.0001696,2]
[330649257,1719687038608,-500.0,0.0001696,2]
[330649258,1719687038617,-538.1489988,0.0001696,2]
[330649259,1719687038627,-500.0,0.0001696,2]
[330649260,1719687038636,-500.0,0.0001696,2]
[330649261,1719687038645,-734.59,0.0001696,2]
[330649262,1719687038656,-500.0,0.0001696,2]
[330649263,1719687038665,-500.0,0.0001696,2]
[330649264,1719687038674,-500.0,0.0001696,2]
[330649265,1719687038684,-500.0,0.0001696,2]
[330649266,1719687038694,-500.0,0.0001696,2]
[330649267,1719687038704,-500.0,0.0001696,2]
[330649268,1719687038713,-573.05,0.0001696,2]
[330649269,1719687038724,-500.0,0.0001696,2]
[330649270,1719687038733,-500.0,0.0001696,2]
[330649271,1719687038744,-500.0,0.0001696,2]
[330649272,1719687038753,-2866.97,0.0001696,2]
[330649273,1719687038763,-500.0,0.0001696,2]
[330649274,1719687038772,-500.0,0.0001696,2]
[330649275,1719687038782,-635.59642352,0.0001696,2]
[330649276,1719687038792,-500.0,0.0001696,2]
[330649277,1719687038802,-2470.1,0.0001696,2]
[330649278,1719687038812,-538.49,0.0001696,2]
[330649279,1719687038822,-7496.65,0.0001696,2]
[330649280,1719687038831,-500.0,0.0001696,2]
[330649281,1719687038840,-51081.30848063,0.00016961,7]
[330649282,1719687038850,-2407.10021603,0.00016961,7]
[330649283,1719687038860,-500.0,0.00016961,2]
[330649284,1719687038870,-500.0,0.00016961,2]
[330649285,1719687038880,-3472.1,0.00016961,2]
[330649286,1719687038890,-1038.71,0.00016961,2]
[330649287,1719687038900,-500.0,0.00016961,2]
[330649288,1719687038910,-500.0,0.00016961,2]
[330649289,1719687038920,-873.89,0.00016961,2]
[330649290,1719687038930,-653.48,0.00016961,2]
[330649291,1719687038940,-4240.54,0.00016961,2]
[330649292,1719687038950,-500.0,0.00016961,2]
[330649293,1719687038960,-500.0,0.00016961,2]
[330649294,1719687038970,-500.0,0.00016961,2]
[330649295,1719687038979,-203.82757905,0.00016961,2]
[330649296,1719687038988,-773.88,0.00016961,2]
[330649297,1719687038998,-500.0,0.00016961,2]
[330649298,1719687039008,-500.0,0.00016961,2]
[330649299,1719687039018,-500.0,0.00016961,2]
[330649300,1719687039028,-645.74,0.00016961,2]
[330649301,1719687039039,-894.65,0.00016961,2]
[330649302,1719687039050,-752.43,0.00016961,2]
[330649303,1719687039060,-3560.25,0.00016961,2]
[330649304,1719687039070,-159.89175344,0.00016961,2]
[330649305,1719687039081,-58563.02,0.00016961,2]
[330649306,1719687039092,-4021.83,0.00016961,2]
[330649307,1719687039102,-5227.9,0.00016961,2]
[330649308,1719687039113,-6811.1,0.00016961,2]
[330649309,1719687039123,-885.05,0.00016961,2]
[330649310,1719687039133,-879.06,0.00016961,2]
[330649311,1719687039143,-11341.7,0.00016961,2]
[330649312,1719687039153,-846.78,0.00016961,2]
[330649313,1719687039164,-3824.35,0.00016961,2]
[330649314,1719687039174,-17271.44,0.00016961,2]
[330649315,1719687039184,-972.35,0.00016961,2]
[330649316,1719687039194,-4422.45,0.00016961,2]
[330649317,1719687039204,-12268.55,0.00016961,2]
[330649318,1719687039214,-166.44937667,0.00016961,2]
[330649690,1719687046351,-500.0,0.0001696,2]
[330649692,1719687046360,-1130.26062333,0.00016961,2]
[330649694,1719687046369,-528.90322443,0.00016961,2]
[330649696,1719687046379,-253.69776115,0.00016961,2]
[330649698,1719687046388,-1120.06,0.00016961,2]
[330649700,1719687046397,-699.03,0.00016961,2]
[330649702,1719687046407,-500.0,0.00016961,2]
[330649704,1719687046416,-1220.47,0.00016961,2]
[330649705,1719687046425,-1264.77923221,0.00016961,2]
[330649873,1719687066672,587.7197832,0.00015962,2]
[330649874,1719687246939,3126.1091191,0.00014999,4]
[330649876,1719687288800,292.95882568,0.00014999,2]
[330649877,1719687296504,2042.26056303,0.00014999,2]
[330649878,1719687317472,492.42676629,0.00015998,2]
[330649881,1719687414020,700.74316383,0.00014999,2]
[330649882,1719687434004,304.423694,0.00015891,2]
[330649923,1719688026650,304.423694,0.00015874,2]
[330650056,1719688238291,-5285.14289515,0.0001649,2]
[330650057,1719688238301,-300.0,0.00016857,2]
[330650058,1719688238311,-2088.83401905,0.00016858,2]
[330650059,1719688238321,-2088.83401901,0.00016859,2]
[330650060,1719688238331,-2088.83401901,0.0001686,2]
[330650061,1719688238340,-2000.0,0.0001686,2]
[330650062,1719688238349,-2088.83401901,0.0001686,2]
[330650063,1719688238358,-2088.83401901,0.00016861,2]
[330650064,1719688238367,-9813.11,0.00016956,2]
[330650065,1719688238376,-573.05,0.00016956,2]
[330650066,1719688238386,-1552.94,0.00016956,2]
[330650067,1719688238395,-7496.65,0.00016956,2]
[330650068,1719688238404,-500.0,0.00016956,2]
[330650069,1719688238414,-894.65,0.00016956,2]
[330650070,1719688238423,-519.75471503,0.00016957,2]
[330650072,1719688238432,-500.0,0.00016957,2]
[330650073,1719688238441,-183.40138099,0.00016957,2]
[330650074,1719688238451,-500.0,0.00016957,2]
[330650075,1719688238460,-500.0,0.00016957,2]
[330650076,1719688238470,-538.1489988,0.00016957,2]
[330650077,1719688238479,-500.0,0.00016957,2]
[330650078,1719688238489,-538.49,0.00016957,2]
[330650079,1719688238499,-500.0,0.00016957,2]
[330650080,1719688238508,-500.0,0.00016957,2]
[330650081,1719688238518,-58563.02,0.00016957,2]
[330650082,1719688238528,-6811.1,0.00016957,2]
[330650083,1719688238538,-11341.7,0.00016957,2]
[330650084,1719688238547,-524.4488104,0.00016957,2]
[330650085,1719688238556,-545.95292562,0.00016957,2]
[330650086,1719688238566,-4422.45,0.00016957,2]
[330650087,1719688238575,-1661.17,0.00016957,2]
[330650088,1719688238584,-669.9,0.00016957,2]
[330650089,1719688238594,-51081.30848063,0.00016958,7]
[330650090,1719688238603,-2407.10021603,0.00016958,7]
[330650091,1719688238611,-500.0,0.00016958,2]
[330650092,1719688238621,-500.0,0.00016958,2]
[330650093,1719688238633,-641.33,0.00016958,2]
[330650094,1719688238643,-797.56,0.00016958,2]
[330650095,1719688238652,-500.0,0.00016958,2]
[330650096,1719688238662,-893.91,0.00016958,2]
[330650097,1719688238671,-500.0,0.00016958,2]
[330650098,1719688238681,-500.0,0.00016958,2]
[330650099,1719688238690,-500.0,0.00016958,2]
[330650100,1719688238700,-500.0,0.00016958,2]
[330650101,1719688238709,-677.46,0.00016958,2]
[330650102,1719688238718,-500.0,0.00016958,2]
[330650103,1719688238728,-1216.46,0.00016958,2]
[330650104,1719688238737,-500.0,0.00016958,2]
[330650105,1719688238746,-3472.1,0.00016958,2]
[330650106,1719688238755,-500.0,0.00016958,2]
[330650107,1719688238765,-500.0,0.00016958,2]
[330650108,1719688238774,-543.58763257,0.00016958,2]
[330650109,1719688238783,-500.0,0.00016958,2]
[330650110,1719688238792,-500.0,0.00016958,2]
[330650111,1719688238801,-500.0,0.00016958,2]
[330650112,1719688238811,-873.89,0.00016958,2]
[330650113,1719688238820,-503.32054217,0.00016958,2]
[330650114,1719688238828,-500.0,0.00016958,2]
[330650115,1719688238837,-1038.71,0.00016958,2]
[330650116,1719688238847,-653.48,0.00016958,2]
[330650117,1719688238856,-1000.0,0.00016958,2]
[330650118,1719688238865,-500.0,0.00016958,2]
[330650119,1719688238875,-528.6361372,0.00016958,2]
[330650120,1719688238884,-500.0,0.00016958,2]
[330650121,1719688238893,-500.0,0.00016958,2]
[330650122,1719688238903,-1015.74,0.00016958,2]
[330650123,1719688238912,-500.0,0.00016958,2]
[330650124,1719688238923,-500.0,0.00016958,2]
[330650125,1719688238932,-734.59,0.00016958,2]
[330650126,1719688238942,-408.71040211,0.00016958,2]
[330650127,1719688238952,-500.0,0.00016958,2]
[330650128,1719688238961,-500.0,0.00016958,2]
[330650129,1719688238972,-881.53,0.00016958,2]
[330650130,1719688238982,-500.0,0.00016958,2]
[330650132,1719688238991,-4240.54,0.00016958,2]
[330650133,1719688239001,-500.0,0.00016958,2]
[330650134,1719688239011,-500.0,0.00016958,2]
[330650135,1719688239021,-500.0,0.00016958,2]
[330650136,1719688239032,-500.0,0.00016958,2]
[330650137,1719688239043,-500.0,0.00016958,2]
[330650138,1719688239053,-500.0,0.00016958,2]
[330650139,1719688239064,-203.82757905,0.00016958,2]
[330650140,1719688239074,-500.0,0.00016958,2]
[330650141,1719688239084,-773.88,0.00016958,2]
[330650142,1719688239094,-1662.17,0.00016958,2]
[330650143,1719688239104,-500.0,0.00016958,2]
[330650144,1719688239115,-500.0,0.00016958,2]
[330650145,1719688239124,-500.0,0.00016958,2]
[330650146,1719688239135,-500.0,0.00016958,2]
[330650147,1719688239145,-500.0,0.00016958,2]
[330650148,1719688239154,-500.0,0.00016958,2]
[330650149,1719688239164,-645.74,0.00016958,2]
[330650150,1719688239174,-500.0,0.00016958,2]
[330650151,1719688239184,-500.0,0.00016958,2]
[330650152,1719688239194,-500.0,0.00016958,2]
[330650153,1719688239204,-635.59642352,0.00016958,2]
[330650154,1719688239214,-10163.5,0.00016958,2]
[330650155,1719688239224,-752.43,0.00016958,2]
[330650156,1719688239234,-1720.39,0.00016958,2]
[330650157,1719688239244,-3560.25,0.00016958,2]
[330650158,1719688239254,-9176.86,0.00016958,2]
[330650159,1719688239263,-500.0,0.00016958,2]
[330650160,1719688239273,-500.0,0.00016958,2]
[330650161,1719688239284,-500.0,0.00016958,2]
[330650162,1719688239294,-4021.83,0.00016958,2]
[330650163,1719688239304,-159.89175344,0.00016958,2]
[330650164,1719688239314,-182.78609145,0.00016958,2]
[330650165,1719688239418,-500.0,0.00016958,2]
[330650166,1719688239428,-7960.79657995,0.00016958,2]
[330650253,1719688243464,-731.25757574,0.00016958,2]
[330650289,1719688243823,-2250.58074393,0.00016958,2]
[330650698,1719688486043,490.65711166,0.00015998,2]
[330650701,1719688502007,1060.82542535,0.00014999,4]
[330650702,1719688503689,2042.26056303,0.00014999,2]
[330650709,1719688659125,215.224186,0.000159,2]
[330650710,1719688675043,3920.35816477,0.00015886,2]
[330650714,1719688788208,700.74316383,0.00014999,2]
[330650751,1719689318998,1000.0,0.00015,5]
[330650768,1719689432874,-7142.9018381,0.00015742,2]
[330650769,1719689432885,-168.32865819,0.00015995,2]
[330650770,1719689432895,-1000.0,0.00016,6]
[330650771,1719689432904,-300.0,0.00016565,2]
[330650772,1719689432914,-2934.4951986,0.00016566,2]
[330650775,1719689438855,-2350.64769655,0.00016566,2]
[330650776,1719689438865,-153.0,0.000167,2]
[330650777,1719689438875,-153.0,0.000167,2]
[330650778,1719689438885,-153.0,0.000167,2]
[330650779,1719689438895,-153.0,0.000167,2]
[330650780,1719689438904,-153.0,0.000167,2]
[330650781,1719689438914,-373.7094763,0.000167,2]
[330650782,1719689438924,-153.0,0.000167,2]
[330650783,1719689438934,-153.0,0.000167,2]
[330650784,1719689438944,-153.0,0.000167,2]
[330650785,1719689438954,-153.0,0.000167,2]
[330650786,1719689438964,-153.0,0.000167,2]
[330650787,1719689438974,-153.0,0.000167,2]
[330650788,1719689438984,-153.0,0.000167,2]
[330650789,1719689438995,-153.0,0.000167,2]
[330650790,1719689439005,-306.0,0.000167,2]
[330650791,1719689439015,-153.0,0.000167,2]
[330650792,1719689439025,-153.0,0.000167,2]
[330650793,1719689439037,-306.0,0.000167,2]
[330650794,1719689439051,-306.0,0.000167,2]
[330650795,1719689439061,-153.0,0.000167,2]
[330650796,1719689439072,-153.0,0.000167,2]
[330650797,1719689439083,-153.0,0.000167,2]
[330650798,1719689439093,-153.0,0.000167,2]
[330650799,1719689439104,-153.0,0.000167,2]
[330650800,1719689439115,-306.0,0.000167,2]
[330650801,1719689439127,-153.0,0.000167,2]
[330650803,1719689439137,-620.00000001,0.00016773,2]
[330650804,1719689439148,-153.0,0.000168,2]
[330650806,1719689439159,-2000.0,0.00016856,2]
[330650808,1719689439170,-2372.31343418,0.00016858,2]
[330650810,1719689439181,-2372.31343418,0.00016859,2]
[330650813,1719689439194,-2372.31343418,0.0001686,2]
[330650815,1719689439204,-240.821,0.00016884,2]
[330650817,1719689439215,-9813.11,0.00016952,2]
[330650818,1719689439225,-573.05,0.00016952,2]
[330650822,1719689439236,-2866.97,0.00016952,2]
[330650825,1719689439246,-500.0,0.00016952,2]
[330650827,1719689439257,-7496.65,0.00016952,2]
[330650829,1719689439268,-500.0,0.00016952,2]
[330650831,1719689439278,-500.0,0.00016952,2]
[330650833,1719689439288,-894.65,0.00016953,2]
[330650835,1719689439301,-58563.02,0.00016953,2]
[330650837,1719689439311,-6811.1,0.00016953,2]
[330650839,1719689439321,-11341.7,0.00016953,2]
[330650841,1719689439333,-4422.45,0.00016953,2]
[330650843,1719689439343,-1130.52,0.00016953,2]
[330650845,1719689439353,-669.9,0.00016953,2]
[330650847,1719689439364,-2470.1,0.00016953,2]
[330650849,1719689439374,-51081.30848063,0.00016954,7]
[330650851,1719689439384,-797.56,0.00016954,2]
[330650853,1719689439395,-500.0,0.00016954,2]
[330650855,1719689439405,-3472.1,0.00016954,2]
[330650857,1719689439415,-1038.71,0.00016954,2]
[330650859,1719689439425,-500.0,0.00016954,2]
[330650861,1719689439435,-500.0,0.00016954,2]
[330650863,1719689439445,-873.89,0.00016954,2]
[330650865,1719689439456,-653.48,0.00016954,2]
[330650867,1719689439467,-4240.54,0.00016954,2]
[330650869,1719689439478,-203.82757905,0.00016954,2]
[330650871,1719689439488,-773.88,0.00016954,2]
[330650873,1719689439499,-500.0,0.00016954,2]
[330650875,1719689439510,-500.0,0.00016954,2]
[330650877,1719689439520,-500.0,0.00016954,2]
[330650879,1719689439531,-752.43,0.00016954,2]
[330650881,1719689439543,-3560.25,0.00016954,2]
[330650883,1719689439554,-500.0,0.00016954,2]
[330650885,1719689439565,-4021.83,0.00016954,2]
[330650887,1719689439576,-645.74,0.00016954,2]
[330650889,1719689439587,-159.89175344,0.00016954,2]
[330650891,1719689439597,-10163.5,0.00016954,2]
[330650893,1719689439607,-9176.86,0.00016954,2]
[330650895,1719689439617,-5227.9,0.00016954,2]
[330650897,1719689439627,-983.94,0.00016954,2]
[330650899,1719689439637,-885.05,0.00016954,2]
[330650901,1719689439647,-846.78,0.00016954,2]
[330650903,1719689439658,-3824.35,0.00016954,2]
[330650905,1719689439668,-972.35,0.00016954,2]
[330650907,1719689439679,-500.0,0.00016954,2]
[330650909,1719689439689,-12268.55,0.00016954,2]
[330650911,1719689439699,-500.0,0.00016954,2]
[330650913,1719689439709,-500.0,0.00016954,2]
[330650915,1719689439720,-1190.19,0.00016954,2]
[330650917,1719689439730,-500.0,0.00016954,2]
[330650919,1719689439740,-1030.9,0.00016954,2]
[330650921,1719689439751,-1169.62,0.00016954,2]
[330650923,1719689439761,-511.5,0.00016954,2]
[330650925,1719689439771,-1680.78,0.00016954,2]
[330650927,1719689439782,-1511.47,0.00016954,2]
[330650929,1719689439794,-1599.62,0.00016954,2]
[330650930,1719689439804,-500.0,0.00016954,2]
[330650931,1719689439814,-2407.10021603,0.00016955,7]
[330650932,1719689439825,-52.7822595,0.00016955,2]
[330651054,1719689447286,-610.7,0.00016954,2]
[330651055,1719689466049,508.22,0.00010959,2]
[330651063,1719689572382,154.86835263,0.00014999,2]
[330651064,1719689574815,531.07966407,0.00014999,2]
[330651065,1719689577325,372.89894741,0.00015,2]
[330651066,1719689583711,260.12071393,0.00014999,2]
[330651067,1719689585877,182.33432574,0.00014999,2]
[330651068,1719689590693,155.52909124,0.00014999,2]
[330651069,1719689593802,240.69985768,0.00014999,2]
[330651070,1719689594798,200.83581235,0.00014999,2]
[330651071,1719689602590,416.9731952,0.00014999,2]
[330651086,1719690104981,667.24,0.00010959,2]
[330651107,1719690514839,-500.0,0.00016,2]
[330651113,1719690589398,-680.60356253,0.00015868,2]
[330651114,1719690589439,-680.60356253,0.00015868,2]
[330651115,1719690589499,-350.33492054,0.00015868,2]
[330651161,1719690631677,-586.23740997,0.00015868,2]
[330651163,1719690631688,-510.30323151,0.00015868,2]
[330651322,1719690637628,-767.89783292,0.00015868,2]
[330651324,1719690637638,-500.0,0.00016,2]
[330651326,1719690637648,-5285.14289515,0.00016557,2]
[330651328,1719690637657,-2372.31343422,0.0001685,2]
[330651330,1719690637666,-2372.31343418,0.00016851,2]
[330651342,1719690637772,-2000.0,0.00016852,2]
[330651344,1719690637782,-2372.31343418,0.00016853,2]
[330651346,1719690637792,-2372.31343418,0.00016854,2]
[330651348,1719690637802,-2372.31343418,0.00016855,2]
[330651350,1719690637811,-240.821,0.00016881,2]
[330651352,1719690637821,-500.0,0.00016948,2]
[330651354,1719690637831,-500.0,0.00016948,2]
[330651356,1719690637841,-500.0,0.00016949,2]
[330651358,1719690637850,-641.33,0.00016949,2]
[330651360,1719690637859,-500.0,0.00016949,2]
[330651362,1719690637869,-893.91,0.00016949,2]
[330651364,1719690637879,-500.0,0.00016949,2]
[330651366,1719690637888,-500.0,0.00016949,2]
[330651368,1719690637898,-500.0,0.00016949,2]
[330651370,1719690637907,-500.0,0.00016949,2]
[330651372,1719690637917,-500.0,0.00016949,2]
[330651374,1719690637926,-677.46,0.00016949,2]
[330651376,1719690637936,-519.75471503,0.00016949,2]
[330651378,1719690637946,-500.0,0.00016949,2]
[330651380,1719690637956,-500.0,0.00016949,2]
[330651382,1719690637965,-1216.46,0.00016949,2]
[330651384,1719690637974,-183.40138099,0.00016949,2]
[330651386,1719690637984,-503.32054217,0.00016949,2]
[330651388,1719690637993,-500.0,0.00016949,2]
[330651390,1719690638003,-500.0,0.00016949,2]
[330651392,1719690638012,-543.58763257,0.00016949,2]
[330651394,1719690638021,-500.0,0.00016949,2]
[330651396,1719690638032,-500.0,0.00016949,2]
[330651398,1719690638042,-500.0,0.00016949,2]
[330651400,1719690638051,-500.0,0.00016949,2]
[330651402,1719690638061,-528.6361372,0.00016949,2]
[330651404,1719690638072,-1000.0,0.00016949,2]
[330651406,1719690638081,-538.1489988,0.00016949,2]
[330651408,1719690638090,-500.0,0.00016949,2]
[330651410,1719690638100,-9813.11,0.00016949,2]
[330651412,1719690638109,-500.0,0.00016949,2]
[330651414,1719690638119,-1015.74,0.00016949,2]
[330651416,1719690638128,-408.71040211,0.00016949,2]
[330651418,1719690638138,-500.0,0.00016949,2]
[330651420,1719690638147,-734.59,0.00016949,2]
[330651422,1719690638157,-881.53,0.00016949,2]
[330651424,1719690638167,-500.0,0.00016949,2]
[330651426,1719690638176,-500.0,0.00016949,2]
[330651428,1719690638185,-500.0,0.00016949,2]
[330651430,1719690638195,-500.0,0.00016949,2]
[330651432,1719690638204,-500.0,0.00016949,2]
[330651434,1719690638216,-500.0,0.00016949,2]
[330651435,1719690638226,-500.0,0.00016949,2]
[330651437,1719690638236,-500.0,0.00016949,2]
[330651440,1719690638246,-500.0,0.00016949,2]
[330651442,1719690638256,-1662.17,0.00016949,2]
[330651444,1719690638266,-538.49,0.00016949,2]
[330651446,1719690638276,-573.05,0.00016949,2]
[330651448,1719690638285,-500.0,0.00016949,2]
[330651450,1719690638295,-500.0,0.00016949,2]
[330651452,1719690638304,-2866.97,0.00016949,2]
[330651454,1719690638314,-500.0,0.00016949,2]
[330651455,1719690638324,-500.0,0.00016949,2]
[330651458,1719690638335,-500.0,0.00016949,2]
[330651459,1719690638345,-7496.65,0.00016949,2]
[330651461,1719690638355,-500.0,0.00016949,2]
[330651463,1719690638365,-500.0,0.00016949,2]
[330651466,1719690638375,-894.65,0.00016949,2]
[330651468,1719690638386,-635.59642352,0.00016949,2]
[330651470,1719690638395,-500.0,0.00016949,2]
[330651472,1719690638405,-55765.30302851,0.0001695,7]
[330651474,1719690638414,-2407.10021603,0.0001695,7]
[330651476,1719690638424,-797.56,0.0001695,2]
[330651478,1719690638434,-500.0,0.0001695,2]
[330651480,1719690638444,-3472.1,0.0001695,2]
[330651482,1719690638454,-1038.71,0.0001695,2]
[330651484,1719690638464,-500.0,0.0001695,2]
[330651486,1719690638474,-500.0,0.0001695,2]
[330651488,1719690638484,-873.89,0.0001695,2]
[330651490,1719690638494,-653.48,0.0001695,2]
[330651492,1719690638503,-500.0,0.0001695,2]
[330651494,1719690638513,-500.0,0.0001695,2]
[330651496,1719690638522,-500.0,0.0001695,2]
[330651497,1719690638531,-4240.54,0.0001695,2]
[330651499,1719690638541,-203.82757905,0.0001695,2]
[330651501,1719690638551,-773.88,0.0001695,2]
[330651504,1719690638561,-500.0,0.0001695,2]
[330651506,1719690638572,-500.0,0.0001695,2]
[330651508,1719690638581,-500.0,0.0001695,2]
[330651510,1719690638591,-2470.1,0.0001695,2]
[330651511,1719690638604,-2367.18,0.0001695,2]
[330651514,1719690638614,-645.74,0.0001695,2]
[330651515,1719690638623,-752.43,0.0001695,2]
[330651517,1719690638633,-3411.9,0.0001695,2]
[330651519,1719690638642,-159.89175344,0.0001695,2]
[330651521,1719690638651,-4021.83,0.0001695,2]
[330651523,1719690638661,-58563.02,0.0001695,2]
[330651525,1719690638671,-885.05,0.0001695,2]
[330651527,1719690638681,-6811.1,0.0001695,2]
[330651529,1719690638690,-846.78,0.0001695,2]
[330651531,1719690638700,-7088.56,0.0001695,2]
[330651533,1719690638711,-3824.35,0.0001695,2]
[330651535,1719690638722,-972.35,0.0001695,2]
[330651537,1719690638732,-10373.29388276,0.0001695,2]
[330651547,1719690639939,-1895.25611724,0.0001695,2]
[330651548,1719690639954,-4422.45,0.0001695,2]
[330651549,1719690639969,-1073.39,0.0001695,2]
[330651550,1719690639984,-231.23440276,0.0001695,2]
[330651551,1719690640003,-647.82559724,0.0001695,2]